fUSD/lending_fUSD_20260520
["ID","MTS","AMOUNT","RATE_DAILY","PERIOD"]
[422664352,1779223846000,-150.0,0.0001413,2]
[422664350,1779223846000,-155.22131517,0.00014123,2]
[422664339,1779223846000,-150.0,0.00014064,2]
[422664359,1779223846000,-150.0,0.00014179,2]
[422664356,1779223846000,-150.0,0.00014154,2]
[422664362,1779223846000,-150.0,0.00014198,2]
[422664361,1779223846000,-150.0,0.00014187,2]
[422664355,1779223846000,-155.22131517,0.00014154,2]
[422664358,1779223846000,-155.22131517,0.00014169,2]
[422664360,1779223846000,-155.22131517,0.00014184,2]
[422664366,1779223846000,-155.22131517,0.00014214,2]
[422664353,1779223846000,-155.22131517,0.00014139,2]
[422664335,1779223846000,-155.22131517,0.00014048,2]
[422664328,1779223846000,-155.22131517,0.00014002,2]
[422664334,1779223846000,-150.0,0.0001404,2]
[422664357,1779223846000,-150.0,0.00014166,2]
[422664306,1779223846000,-472.0,0.00013935,2]
[422664307,1779223846000,-472.0,0.00013935,2]
[422664309,1779223846000,-472.0,0.00013935,2]
[422664319,1779223846000,-166.66,0.00013973,2]
[422664320,1779223846000,-1537.29259787,0.0001398,2]
[422664308,1779223846000,-472.0,0.00013935,2]
[422664315,1779223846000,-150.0,0.00013952,2]
[422664312,1779223846000,-474.0,0.00013935,2]
[422664310,1779223846000,-472.0,0.00013935,2]
[422664316,1779223846000,-155.22131517,0.00013957,2]
[422664311,1779223846000,-472.0,0.00013935,2]
[422664333,1779223846000,-155.22131517,0.00014033,2]
[422664313,1779223846000,-155.22131517,0.00013942,2]
[422664318,1779223846000,-155.22131517,0.00013972,2]
[422664321,1779223846000,-150.0,0.00013987,2]
[422664322,1779223846000,-150.0,0.00013987,2]
[422664329,1779223846000,-150.0,0.00014006,2]
[422664332,1779223846000,-150.0,0.00014023,2]
[422664324,1779223846000,-155.22131517,0.00013987,2]
[422664327,1779223846000,-1000.0,0.00014,2]
[422664325,1779223846000,-34363.75804263,0.0001399,2]
[422664323,1779223846000,-150.0,0.00013987,2]
[422664326,1779223846000,-500.0,0.00013993,2]
[422664330,1779223846000,-155.22131517,0.00014017,2]
[422664331,1779223846000,-150.0,0.00014023,2]
[422664317,1779223846000,-150.0,0.00013961,2]
[422664314,1779223846000,-150.0,0.00013949,2]
[422664365,1779223846000,-150.0,0.00014201,2]
[422664363,1779223846000,-155.22131517,0.00014199,2]
[422664395,1779223846000,-150.0,0.00014355,2]
[422664404,1779223846000,-155.22131517,0.00014396,2]
[422664400,1779223846000,-155.22131517,0.00014381,2]
[422664405,1779223846000,-3358.44,0.00014397,2]
[422664398,1779223846000,-150.0,0.0001438,2]
[422664402,1779223846000,-166.66,0.00014384,2]
[422664407,1779223846000,-155.22131517,0.00014411,2]
[422664406,1779223846000,-150.0,0.0001441,2]
[422664408,1779223846000,-150.0,0.00014415,2]
[422664409,1779223846000,-150.0,0.00014424,2]
[422664411,1779223846000,-155.22131517,0.00014426,2]
[422664419,1779223846000,-150.0,0.00014451,2]
[422664425,1779223846000,-150.0,0.00014468,2]
[422664421,1779223846000,-155.22131517,0.00014456,2]
[422664413,1779223846000,-150.0,0.00014434,2]
[422664417,1779223846000,-150.0,0.00014451,2]
[422664423,1779223846000,-4593.99029514,0.00014459,2]
[422664424,1779223846000,-7905.28723818,0.00014459,2]
[422664427,1779223846000,-150.0,0.00014487,2]
[422664426,1779223846000,-155.22131517,0.00014472,2]
[422664428,1779223846000,-150.0,0.00014487,2]
[422664433,1779223846000,-155.22131517,0.00014502,2]
[422664432,1779223846000,-102821.39,0.00014497,2]
[422664429,1779223846000,-150.0,0.00014487,2]
[422664431,1779223846000,-2310.03,0.00014497,2]
[422664430,1779223846000,-155.22131517,0.00014487,2]
[422664364,1779223846000,-1221.39,0.000142,2]
[422664397,1779223846000,-155.22131517,0.00014366,2]
[422664393,1779223846000,-155.22131517,0.00014351,2]
[422664415,1779223846000,-155.22131517,0.00014441,2]
[422664403,1779223846000,-150.0,0.00014387,2]
[422664368,1779223846000,-227.55,0.00014234,2]
[422664396,1779223846000,-931.99,0.00014359,2]
[422664379,1779223846000,-500.0,0.00014267,2]
[422664367,1779223846000,-155.22131517,0.00014229,2]
[422664378,1779223846000,-155.22131517,0.0001426,2]
[422664373,1779223846000,-150.0,0.00014237,2]
[422664377,1779223846000,-749751.0088345,0.0001425,2]
[422664375,1779223846000,-155.22131517,0.00014245,2]
[422664370,1779223846000,-150.0,0.00014237,2]
[422664372,1779223846000,-150.0,0.00014237,2]
[422664371,1779223846000,-150.0,0.00014237,2]
[422664369,1779223846000,-150.0,0.00014237,2]
[422664374,1779223846000,-150.0,0.00014237,2]
[422664380,1779223846000,-150.0,0.00014273,2]
[422664376,1779223846000,-166.66,0.00014247,2]
[422664388,1779223846000,-150.0,0.0001432,2]
[422664394,1779223846000,-150.0,0.00014352,2]
[422664391,1779223846000,-150.0,0.00014344,2]
[422664389,1779223846000,-155.22131517,0.0001432,2]
[422664390,1779223846000,-155.22131517,0.00014335,2]
[422664383,1779223846000,-150.0,0.00014287,2]
[422664384,1779223846000,-155.22131517,0.0001429,2]
[422664387,1779223846000,-150.0,0.00014308,2]
[422664392,1779223846000,-150.0,0.00014344,2]
[422664385,1779223846000,-150.0,0.00014295,2]
[422664382,1779223846000,-150.0,0.00014276,2]
[422664381,1779223846000,-155.22131517,0.00014275,2]
[422664386,1779223846000,-155.22131517,0.00014305,2]
[422664479,1779223847000,-500.0,0.00014726,2]
[422664473,1779223847000,-155.22131517,0.00014699,2]
[422664491,1779223847000,-155.22131517,0.00014759,2]
[422664480,1779223847000,-500.0,0.00014726,2]
[422664476,1779223847000,-155.22131517,0.00014714,2]
[422664472,1779223847000,-150.0,0.00014698,2]
[422664475,1779223847000,-150.0,0.00014701,2]
[422664469,1779223847000,-155.22131517,0.00014684,2]
[422664467,1779223847000,-150.0,0.00014671,2]
[422664471,1779223847000,-1000.0,0.0001469,2]
[422664470,1779223847000,-150.0,0.00014687,2]
[422664490,1779223847000,-352.737,0.00014756,2]
[422664474,1779223847000,-1931.77013467,0.000147,2]
[422664481,1779223847000,-500.0,0.00014726,2]
[422664494,1779223847000,-1000.0,0.00014773,2]
[422664485,1779223847000,-150.0,0.00014737,2]
[422664497,1779223847000,-150.0,0.00014786,2]
[422664488,1779223847000,-150.0,0.00014756,2]
[422664482,1779223847000,-500.0,0.00014726,2]
[422664489,1779223847000,-4889.546,0.00014756,2]
[422664484,1779223847000,-155.22131517,0.00014729,2]
[422664487,1779223847000,-150.0,0.0001475,2]
[422664492,1779223847000,-150.0,0.00014772,2]
[422664493,1779223847000,-150.0,0.00014772,2]
[422664504,1779223847000,-413.0,0.00014809,2]
[422664503,1779223847000,-150.0,0.00014808,2]
[422664501,1779223847000,-2600.0,0.000148,5]
[422664477,1779223847000,-1300.0,0.00014726,2]
[422664486,1779223847000,-155.22131517,0.00014744,2]
[422664468,1779223847000,-1000.0,0.00014672,2]
[422664435,1779223847000,-155.22131517,0.00014517,2]
[422664466,1779223847000,-155.22131517,0.00014668,2]
[422664437,1779223847000,-150.0,0.00014525,2]
[422664436,1779223847000,-150.0,0.00014522,2]
[422664434,1779223847000,-150.0,0.00014513,2]
[422664439,1779223847000,-155.22131517,0.00014532,2]
[422664446,1779223847000,-150.0,0.00014583,2]
[422664445,1779223847000,-155.22131517,0.00014578,2]
[422664441,1779223847000,-155.22131517,0.00014547,2]
[422664443,1779223847000,-150.0,0.00014558,2]
[422664438,1779223847000,-863.57261544,0.00014529,2]
[422664444,1779223847000,-155.22131517,0.00014562,2]
[422664449,1779223847000,-155.22131517,0.00014593,2]
[422664442,1779223847000,-150.0,0.00014558,2]
[422664440,1779223847000,-500.0,0.00014541,2]
[422664450,1779223847000,-150.0,0.00014594,2]
[422664447,1779223847000,-150.0,0.00014587,2]
[422664448,1779223847000,-150.0,0.00014592,2]
[422664453,1779223847000,-150.0,0.00014612,2]
[422664451,1779223847000,-155.22131517,0.00014608,2]
[422664465,1779223847000,-150.0,0.00014665,2]
[422664454,1779223847000,-150.0,0.00014612,2]
[422664462,1779223847000,-150.0,0.00014653,2]
[422664464,1779223847000,-150.0,0.00014665,2]
[422664463,1779223847000,-155.22131517,0.00014653,2]
[422664457,1779223847000,-155.22131517,0.00014623,2]
[422664456,1779223847000,-350.0,0.00014619,2]
[422664458,1779223847000,-150.0,0.00014629,2]
[422664461,1779223847000,-491.22,0.00014651,2]
[422664459,1779223847000,-155.22131517,0.00014638,2]
[422664460,1779223847000,-150.0,0.0001464,2]
[422664478,1779223847000,-600.0,0.00014726,2]
[422664495,1779223847000,-155.22131517,0.00014774,2]
[422664483,1779223847000,-500.0,0.00014726,2]
[422664498,1779223847000,-155.22131517,0.0001479,2]
[422664544,1779223847000,-150.0,0.00014951,2]
[422664543,1779223847000,-417.0,0.00014946,2]
[422664534,1779223847000,-150.0,0.00014907,2]
[422664540,1779223847000,-155.22131517,0.00014926,2]
[422664542,1779223847000,-155.22131517,0.00014941,2]
[422664536,1779223847000,-150.0,0.00014915,2]
[422664539,1779223847000,-736.0,0.00014925,2]
[422664538,1779223847000,-417.0,0.00014924,2]
[422664537,1779223847000,-150.0,0.00014915,2]
[422664541,1779223847000,-150.0,0.00014929,2]
[422664546,1779223847000,-2401.8,0.00014956,2]
[422664547,1779223847000,-155.22131517,0.00014956,2]
[422664551,1779223847000,-155.22131517,0.00014971,2]
[422664556,1779223847000,-152.10400648,0.00014986,2]
[422664555,1779223847000,-284.58525916,0.00014986,2]
[422664550,1779223847000,-413.0,0.00014968,2]
[422664552,1779223847000,-1537.29259787,0.00014981,2]
[422664548,1779223847000,-417.0,0.00014963,2]
[422664557,1779223847000,-151.4416791,0.00014986,2]
[422664549,1779223847000,-417.0,0.00014966,2]
[422664553,1779223847000,-116439.0691031,0.00014984,2]
[422664554,1779223847000,-3592.4951851,0.00014984,2]
[422664559,1779223847000,-152.75252402,0.00014986,2]
[422664558,1779223847000,-254.67783396,0.00014986,2]
[422664561,1779223847000,-153.99235667,0.00014986,2]
[422664560,1779223847000,-153.09099208,0.00014986,2]
[422664562,1779223847000,-152.35107503,0.00014986,2]
[422664564,1779223847000,-155.22131517,0.00014986,2]
[422664496,1779223847000,-417.0,0.00014775,2]
[422664532,1779223847000,-2600.0,0.000149,5]
[422664545,1779223847000,-279.0,0.00014956,2]
[422664563,1779223847000,-225.67224447,0.00014986,2]
[422664533,1779223847000,-25000.0,0.000149,3]
[422664535,1779223847000,-155.22131517,0.00014911,2]
[422664500,1779223847000,-413.0,0.000148,2]
[422664502,1779223847000,-155.22131517,0.00014805,2]
[422664499,1779223847000,-150.0,0.00014799,2]
[422664510,1779223847000,-227.55,0.00014828,2]
[422664518,1779223847000,-406.0,0.00014853,2]
[422664509,1779223847000,-417.0,0.00014821,2]
[422664513,1779223847000,-150.0,0.00014844,2]
[422664514,1779223847000,-413.0,0.00014848,2]
[422664516,1779223847000,-29964.16918207,0.0001485,2]
[422664508,1779223847000,-155.22131517,0.0001482,2]
[422664505,1779223847000,-150.0,0.00014813,2]
[422664515,1779223847000,-21091.19165994,0.0001485,2]
[422664512,1779223847000,-155.22131517,0.00014835,2]
[422664517,1779223847000,-155.22131517,0.0001485,2]
[422664511,1779223847000,-150.0,0.00014829,2]
[422664506,1779223847000,-500.0,0.00014815,2]
[422664507,1779223847000,-150.0,0.0001482,2]
[422664529,1779223847000,-155.22131517,0.00014895,2]
[422664530,1779223847000,-4987.0,0.000149,5]
[422664528,1779223847000,-2012.60311337,0.00014891,2]
[422664522,1779223847000,-200.0,0.00014879,2]
[422664524,1779223847000,-150.0,0.00014879,2]
[422664527,1779223847000,-150.0,0.00014886,2]
[422664526,1779223847000,-413.0,0.00014882,2]
[422664519,1779223847000,-200.0,0.0001486,2]
[422664521,1779223847000,-150.0,0.00014871,2]
[422664520,1779223847000,-155.22131517,0.00014865,2]
[422664531,1779223847000,-4102.0,0.000149,5]
[422664523,1779223847000,-150.0,0.00014879,2]
[422664525,1779223847000,-155.22131517,0.0001488,2]
[422664603,1779223848000,-300.0,0.00014999,2]
[422664592,1779223848000,-151.0,0.00014991,2]
[422664599,1779223848000,-417.0,0.00014999,2]
[422664602,1779223848000,-394.54452703,0.00014999,2]
[422664598,1779223848000,-151.0,0.00014997,2]
[422664596,1779223848000,-151.0,0.00014997,2]
[422664585,1779223848000,-474.477655,0.00014991,2]
[422664601,1779223848000,-300.0,0.00014999,2]
[422664597,1779223848000,-151.0,0.00014997,2]
[422664600,1779223848000,-1098.07046975,0.00014999,5]
[422664608,1779223848000,-300.0,0.00014999,2]
[422664607,1779223848000,-666.0,0.00014999,2]
[422664612,1779223848000,-4922692.25706512,0.00015,2]
[422664606,1779223848000,-300.0,0.00014999,2]
[422664605,1779223848000,-271.45547297,0.00014999,2]
[422664611,1779223848000,-666.0,0.00014999,2]
[422664610,1779223848000,-300.0,0.00014999,2]
[422664613,1779223848000,-427.99502418,0.00015,2]
[422664609,1779223848000,-300.0,0.00014999,2]
[422664615,1779223848000,-1000.0,0.00015,2]
[422664614,1779223848000,-1000.0,0.00015,2]
[422664620,1779223848000,-1000.0,0.00015,2]
[422664591,1779223848000,-151.0,0.00014991,2]
[422664617,1779223848000,-1000.0,0.00015,2]
[422664604,1779223848000,-300.0,0.00014999,2]
[422664587,1779223848000,-167.497542,0.00014991,2]
[422664582,1779223848000,-474.477655,0.00014991,2]
[422664588,1779223848000,-167.497542,0.00014991,2]
[422664618,1779223848000,-1000.0,0.00015,2]
[422664569,1779223848000,-10234.796639,0.00014991,2]
[422664565,1779223848000,-170.41262241,0.00014986,2]
[422664566,1779223848000,-151.0,0.00014988,2]
[422664567,1779223848000,-56046.8158454,0.00014991,2]
[422664568,1779223848000,-1197.4983951,0.00014991,2]
[422664570,1779223848000,-1960052.012991,0.00014991,2]
[422664572,1779223848000,-151.0,0.00014991,2]
[422664573,1779223848000,-151.0,0.00014991,2]
[422664574,1779223848000,-525383.230324,0.00014991,2]
[422664581,1779223848000,-151.0,0.00014991,2]
[422664579,1779223848000,-151.0,0.00014991,2]
[422664571,1779223848000,-2965.4618545,0.00014991,2]
[422664575,1779223848000,-268057.5701229,0.00014991,2]
[422664578,1779223848000,-151.0,0.00014991,2]
[422664577,1779223848000,-151.0,0.00014991,2]
[422664576,1779223848000,-1000.0,0.00014991,2]
[422664580,1779223848000,-151.0,0.00014991,2]
[422664584,1779223848000,-474.477655,0.00014991,2]
[422664595,1779223848000,-151.0,0.00014997,2]
[422664594,1779223848000,-151.0,0.00014991,2]
[422664583,1779223848000,-474.477655,0.00014991,2]
[422664586,1779223848000,-151.0,0.00014991,2]
[422664593,1779223848000,-151.0,0.00014991,2]
[422664589,1779223848000,-167.497542,0.00014991,2]
[422664590,1779223848000,-167.497542,0.00014991,2]
[422664616,1779223848000,-1000.0,0.00015,2]
[422664619,1779223848000,-1000.0,0.00015,2]
[422664622,1779223848000,-803.1,0.00015,2]
[422664644,1779223848000,-151.0,0.00015,2]
[422664648,1779223848000,-474.477655,0.00015,2]
[422664647,1779223848000,-474.477655,0.00015,2]
[422664651,1779223848000,-151.0,0.00015,2]
[422664650,1779223848000,-474.477655,0.00015,2]
[422664654,1779223848000,-167.497542,0.00015,2]
[422664660,1779223848000,-151.0,0.00015,2]
[422664661,1779223848000,-155.97866,0.00015,2]
[422664662,1779223848000,-978.198356,0.00015,2]
[422664665,1779223848000,-978.198356,0.00015,2]
[422664669,1779223848000,-151.0,0.00015,2]
[422664653,1779223848000,-162.1984,0.00015,2]
[422664659,1779223848000,-151.0,0.00015,2]
[422664667,1779223848000,-151.0,0.00015,2]
[422664658,1779223848000,-151.0,0.00015,2]
[422664668,1779223848000,-151.0,0.00015,2]
[422664663,1779223848000,-978.198356,0.00015,2]
[422664664,1779223848000,-978.198356,0.00015,2]
[422664671,1779223848000,-930.0,0.00015,2]
[422664672,1779223848000,-151.0,0.00015,2]
[422664670,1779223848000,-151.0,0.00015,2]
[422664675,1779223848000,-151.0,0.00015,2]
[422664673,1779223848000,-151.0,0.00015,2]
[422664674,1779223848000,-151.0,0.00015,2]
[422664657,1779223848000,-167.497542,0.00015,2]
[422664649,1779223848000,-474.477655,0.00015,2]
[422664666,1779223848000,-417.0,0.00015,2]
[422664646,1779223848000,-1270.0,0.00015,2]
[422664652,1779223848000,-162.19839,0.00015,2]
[422664621,1779223848000,-1008.41099095,0.00015,2]
[422664630,1779223848000,-154.0,0.00015,2]
[422664623,1779223848000,-212.82417601,0.00015,2]
[422664624,1779223848000,-271.06410122,0.00015,2]
[422664627,1779223848000,-850.44540735,0.00015,2]
[422664628,1779223848000,-455.52,0.00015,2]
[422664626,1779223848000,-292.55428223,0.00015,2]
[422664631,1779223848000,-154.0,0.00015,2]
[422664625,1779223848000,-1110.15312462,0.00015,2]
[422664632,1779223848000,-151.0,0.00015,2]
[422664639,1779223848000,-151.0,0.00015,2]
[422664629,1779223848000,-200.0,0.00015,2]
[422664637,1779223848000,-934.097,0.00015,2]
[422664641,1779223848000,-3544.0,0.00015,2]
[422664638,1779223848000,-625.0,0.00015,2]
[422664640,1779223848000,-151.0,0.00015,2]
[422664633,1779223848000,-151.0,0.00015,2]
[422664634,1779223848000,-151.0,0.00015,2]
[422664635,1779223848000,-200.0,0.00015,2]
[422664636,1779223848000,-200.0,0.00015,2]
[422664642,1779223848000,-1354.0,0.00015,2]
[422664645,1779223848000,-151.0,0.00015,2]
[422664655,1779223848000,-167.497542,0.00015,2]
[422664643,1779223848000,-151.0,0.00015,2]
[422664656,1779223848000,-167.497542,0.00015,2]
[422664718,1779223849000,-150.0,0.00015625,2]
[422664717,1779223849000,-700.0,0.00015614,2]
[422664708,1779223849000,-200.0,0.00015609,2]
[422664713,1779223849000,-150.0,0.00015613,2]
[422664716,1779223849000,-183.0,0.00015613,2]
[422664714,1779223849000,-150.0,0.00015613,2]
[422664710,1779223849000,-200.0,0.00015609,2]
[422664712,1779223849000,-150.0,0.00015613,2]
[422664711,1779223849000,-150.0,0.00015613,2]
[422664709,1779223849000,-200.0,0.00015609,2]
[422664720,1779223849000,-150.0,0.00015625,2]
[422664722,1779223849000,-150.0,0.00015625,2]
[422664715,1779223849000,-150.0,0.00015613,2]
[422664721,1779223849000,-150.0,0.00015625,2]
[422664735,1779223849000,-151.0,0.00015747,2]
[422664723,1779223849000,-150.0,0.00015625,2]
[422664733,1779223849000,-151.0,0.00015747,2]
[422664725,1779223849000,-500.0,0.00015637,2]
[422664734,1779223849000,-151.0,0.00015747,2]
[422664727,1779223849000,-300.0,0.00015746,2]
[422664726,1779223849000,-931.99,0.00015664,2]
[422664724,1779223849000,-295.0,0.00015625,2]
[422664730,1779223849000,-151.0,0.00015747,2]
[422664728,1779223849000,-666.0,0.00015746,2]
[422664729,1779223849000,-500.0,0.00015747,2]
[422664731,1779223849000,-2005.9555727,0.00015747,2]
[422664737,1779223849000,-151.0,0.00015747,2]
[422664719,1779223849000,-150.0,0.00015625,2]
[422664732,1779223849000,-151.0,0.00015747,2]
[422664704,1779223849000,-200.0,0.00015455,2]
[422664680,1779223849000,-675.4,0.00015068,2]
[422664701,1779223849000,-227.55,0.00015421,2]
[422664681,1779223849000,-330.848722,0.00015068,2]
[422664679,1779223849000,-7468.92717426,0.00015035,2]
[422664676,1779223849000,-501.57317988,0.00015008,2]
[422664746,1779223849000,-151.0,0.00015747,2]
[422664678,1779223849000,-666.0,0.00015034,2]
[422664677,1779223849000,-300.0,0.00015034,2]
[422664682,1779223849000,-330.848722,0.00015068,2]
[422664686,1779223849000,-330.848722,0.00015068,2]
[422664688,1779223849000,-330.848722,0.00015068,2]
[422664687,1779223849000,-330.848722,0.00015068,2]
[422664693,1779223849000,-200.0,0.0001515,2]
[422664683,1779223849000,-330.848722,0.00015068,2]
[422664684,1779223849000,-330.848722,0.00015068,2]
[422664685,1779223849000,-330.848722,0.00015068,2]
[422664694,1779223849000,-1095.0,0.000152,2]
[422664689,1779223849000,-500.0,0.00015089,2]
[422664691,1779223849000,-200.0,0.0001515,2]
[422664690,1779223849000,-2000.0,0.00015115,2]
[422664692,1779223849000,-200.0,0.0001515,2]
[422664696,1779223849000,-200.0,0.00015301,2]
[422664706,1779223849000,-4609.0,0.00015477,2]
[422664707,1779223849000,-1237.65657856,0.000155,2]
[422664697,1779223849000,-200.0,0.00015301,2]
[422664698,1779223849000,-200.0,0.00015301,2]
[422664695,1779223849000,-1517.64,0.000153,2]
[422664702,1779223849000,-150.19796051,0.00015445,2]
[422664700,1779223849000,-500.0,0.00015363,2]
[422664705,1779223849000,-200.0,0.00015455,2]
[422664699,1779223849000,-500.0,0.00015315,2]
[422664703,1779223849000,-200.0,0.00015455,2]
[422664736,1779223849000,-151.0,0.00015747,2]
[422664787,1779223849000,-500.0,0.00015911,2]
[422664739,1779223849000,-151.0,0.00015747,2]
[422664784,1779223849000,-15000.0,0.00015875,2]
[422664773,1779223849000,-174.11907889,0.00015747,2]
[422664785,1779223849000,-150.0,0.000159,2]
[422664777,1779223849000,-6111.0,0.00015792,2]
[422664775,1779223849000,-300.0,0.00015791,2]
[422664776,1779223849000,-705.91237391,0.00015791,2]
[422664778,1779223849000,-2270.89528272,0.00015807,2]
[422664783,1779223849000,-300.0,0.00015874,2]
[422664779,1779223849000,-542.23083635,0.00015815,2]
[422664781,1779223849000,-300.0,0.00015874,2]
[422664782,1779223849000,-300.0,0.00015874,2]
[422664780,1779223849000,-300.0,0.00015874,2]
[422664788,1779223849000,-151.0,0.00015913,2]
[422664790,1779223849000,-300.0,0.00015915,2]
[422664789,1779223849000,-300.0,0.00015915,2]
[422664797,1779223849000,-215.15951567,0.00016,3]
[422664794,1779223849000,-13423.72834273,0.00015984,2]
[422664798,1779223849000,-400.90550289,0.00016,2]
[422664795,1779223849000,-6111.0,0.00015998,2]
[422664791,1779223849000,-300.0,0.00015915,2]
[422664793,1779223849000,-300.0,0.00015983,2]
[422664792,1779223849000,-15000.0,0.00015916,2]
[422664796,1779223849000,-300.0,0.00016,2]
[422664800,1779223849000,-500.0,0.00016082,2]
[422664799,1779223849000,-227.55,0.00016014,2]
[422664801,1779223849000,-459.30807833,0.00016096,2]
[422664802,1779223849000,-1300.0,0.00016096,2]
[422664738,1779223849000,-151.0,0.00015747,2]
[422664803,1779223849000,-600.0,0.00016096,2]
[422664774,1779223849000,-163.19,0.00015777,2]
[422664772,1779223849000,-152.0,0.00015747,2]
[422664786,1779223849000,-150.0,0.000159,2]
[422664769,1779223849000,-152.0,0.00015747,2]
[422664743,1779223849000,-151.0,0.00015747,2]
[422664771,1779223849000,-152.0,0.00015747,2]
[422664744,1779223849000,-151.0,0.00015747,2]
[422664740,1779223849000,-151.0,0.00015747,2]
[422664742,1779223849000,-151.0,0.00015747,2]
[422664741,1779223849000,-151.0,0.00015747,2]
[422664748,1779223849000,-151.0,0.00015747,2]
[422664758,1779223849000,-151.0,0.00015747,2]
[422664759,1779223849000,-151.0,0.00015747,2]
[422664747,1779223849000,-151.0,0.00015747,2]
[422664750,1779223849000,-151.0,0.00015747,2]
[422664752,1779223849000,-151.0,0.00015747,2]
[422664756,1779223849000,-151.0,0.00015747,2]
[422664749,1779223849000,-151.0,0.00015747,2]
[422664753,1779223849000,-151.0,0.00015747,2]
[422664745,1779223849000,-151.0,0.00015747,2]
[422664757,1779223849000,-151.0,0.00015747,2]
[422664766,1779223849000,-152.0,0.00015747,2]
[422664751,1779223849000,-151.0,0.00015747,2]
[422664767,1779223849000,-152.0,0.00015747,2]
[422664763,1779223849000,-151.0,0.00015747,2]
[422664770,1779223849000,-152.0,0.00015747,2]
[422664768,1779223849000,-152.0,0.00015747,2]
[422664764,1779223849000,-152.0,0.00015747,2]
[422664765,1779223849000,-152.0,0.00015747,2]
[422664760,1779223849000,-151.0,0.00015747,2]
[422664762,1779223849000,-151.0,0.00015747,2]
[422664755,1779223849000,-151.0,0.00015747,2]
[422664754,1779223849000,-151.0,0.00015747,2]
[422664761,1779223849000,-151.0,0.00015747,2]
[422664846,1779223850000,-163.19,0.00016904,2]
[422664840,1779223850000,-901.07,0.000167,2]
[422664835,1779223850000,-3313.18,0.00016474,2]
[422664851,1779223850000,-150.0,0.00017136,2]
[422664847,1779223850000,-164.64668313,0.00016951,7]
[422664842,1779223850000,-231.7,0.00016767,2]
[422664850,1779223850000,-20169.32651765,0.00017081,2]
[422664841,1779223850000,-500.0,0.00016733,2]
[422664849,1779223850000,-6453.0,0.00017024,2]
[422664829,1779223850000,-151.0,0.00016438,2]
[422664848,1779223850000,-500.0,0.00017007,2]
[422664837,1779223850000,-5624.06535761,0.000165,2]
[422664844,1779223850000,-192.34325036,0.00016843,2]
[422664845,1779223850000,-2157.14243826,0.00016843,2]
[422664863,1779223850000,-500.0,0.00017257,2]
[422664853,1779223850000,-230.306,0.00017136,2]
[422664864,1779223850000,-500.0,0.00017257,2]
[422664855,1779223850000,-192.979,0.00017136,2]
[422664852,1779223850000,-151.0,0.00017136,2]
[422664856,1779223850000,-150.352,0.00017136,2]
[422664854,1779223850000,-238.138,0.00017136,2]
[422664860,1779223850000,-150.972,0.00017136,2]
[422664859,1779223850000,-250.0,0.00017136,2]
[422664858,1779223850000,-150.0,0.00017136,2]
[422664857,1779223850000,-150.0,0.00017136,2]
[422664861,1779223850000,-151.0,0.00017136,2]
[422664862,1779223850000,-625.0,0.00017257,2]
[422664831,1779223850000,-151.0,0.00016438,2]